fUSD/lending_fUSD_20240201
["ID","MTS","AMOUNT","RATE_DAILY","PERIOD"]
[313107532,1706753449089,-500.0,0.00033972,2]
[313107533,1706753449099,-628.37,0.00033972,2]
[313107534,1706753449109,-1483.58,0.00033972,2]
[313107535,1706753449119,-833.05,0.00033972,2]
[313107536,1706753449130,-621.52,0.00033972,2]
[313107537,1706753449139,-760.71,0.00033972,2]
[313107538,1706753449148,-1506.53,0.00033972,2]
[313107539,1706753449158,-500.0,0.00033972,2]
[313107540,1706753449167,-500.0,0.00033972,2]
[313107541,1706753449176,-2613.19,0.00033972,2]
[313107542,1706753449186,-1000.0,0.00033972,21]
[313107543,1706753449195,-500.0,0.00033972,2]
[313107544,1706753449205,-841.1,0.00033972,2]
[313107545,1706753449214,-500.0,0.00033972,2]
[313107546,1706753449224,-1092.7,0.00033972,2]
[313107547,1706753449234,-654.8,0.00033972,2]
[313107548,1706753449243,-500.0,0.00033972,2]
[313107549,1706753449252,-500.0,0.00033972,2]
[313107550,1706753449262,-601.97,0.00033972,2]
[313107551,1706753449271,-500.0,0.00033972,2]
[313107552,1706753449280,-500.0,0.00033972,2]
[313107553,1706753449291,-500.0,0.00033972,2]
[313107554,1706753449300,-546.24,0.00033972,2]
[313107555,1706753449310,-1642.79,0.00033972,2]
[313107556,1706753449319,-500.0,0.00033972,2]
[313107557,1706753449329,-809.92,0.00033972,2]
[313107558,1706753449339,-719.16,0.00033972,2]
[313107559,1706753449348,-500.0,0.00033972,2]
[313107560,1706753449358,-500.0,0.00033972,2]
[313107561,1706753449367,-500.0,0.00033972,2]
[313107562,1706753449538,-500.0,0.00033972,2]
[313107563,1706753449547,-2879.3,0.00033972,2]
[313107564,1706753449557,-3356.9,0.00033972,2]
[313107565,1706753449567,-500.0,0.00033972,2]
[313107566,1706753449577,-1283.42,0.00033972,2]
[313107567,1706753449586,-500.0,0.00033972,2]
[313107568,1706753449595,-500.0,0.00033972,2]
[313107569,1706753449605,-232.41617919,0.00033972,2]
[313107570,1706753449614,-18391.59,0.00033972,2]
[313107571,1706753449623,-1359.64,0.00033972,2]
[313107572,1706753449634,-723.9,0.00033972,2]
[313107573,1706753449643,-500.0,0.00033972,2]
[313107574,1706753449652,-631.81,0.00033972,2]
[313107575,1706753449661,-500.0,0.00033972,2]
[313107576,1706753449670,-500.0,0.00033972,2]
[313107577,1706753449680,-534.32455932,0.00033972,2]
[313107578,1706753449690,-500.0,0.00033972,2]
[313107579,1706753449700,-500.0,0.00033972,2]
[313107580,1706753449709,-881.3,0.00033972,2]
[313107581,1706753449719,-1212.78,0.00033972,2]
[313107582,1706753449729,-812.76,0.00033972,2]
[313107583,1706753449739,-500.0,0.00033972,2]
[313107584,1706753449749,-500.0,0.00033972,2]
[313107585,1706753449759,-857.23,0.00033972,2]
[313107586,1706753449768,-500.0,0.00033972,2]
[313107587,1706753449777,-500.0,0.00033972,2]
[313107588,1706753449786,-705.5,0.00033972,2]
[313107589,1706753449795,-1366.96,0.00033972,2]
[313107590,1706753449805,-565.2,0.00033972,2]
[313107591,1706753449814,-573.41,0.00033972,2]
[313107592,1706753449823,-500.0,0.00033972,2]
[313107593,1706753449832,-500.0,0.00033972,2]
[313107594,1706753449842,-588.44,0.00033972,2]
[313107595,1706753449853,-2427.53,0.00033972,2]
[313107596,1706753449862,-500.0,0.00033972,2]
[313107597,1706753449871,-500.0,0.00033972,2]
[313107598,1706753449881,-1019.17,0.00033972,2]
[313107599,1706753449892,-500.0,0.00033972,2]
[313107600,1706753449902,-588.18,0.00033972,2]
[313107601,1706753449911,-578.65,0.00033972,2]
[313107602,1706753449920,-500.0,0.00033972,2]
[313107603,1706753449930,-2981.67,0.00033972,2]
[313107604,1706753449939,-825.08,0.00033972,2]
[313107605,1706753449948,-500.0,0.00033972,2]
[313107606,1706753449958,-500.0,0.00033972,2]
[313107607,1706753449967,-1063.77,0.00033972,2]
[313107608,1706753449977,-4863.03,0.00033972,2]
[313107609,1706753449986,-500.0,0.00033972,2]
[313107610,1706753449995,-1608.22,0.00033972,2]
[313107611,1706753450005,-839.58,0.00033972,2]
[313107612,1706753450014,-500.0,0.00033972,2]
[313107613,1706753450023,-500.0,0.00033972,2]
[313107614,1706753450032,-500.0,0.00033972,2]
[313107615,1706753450042,-500.0,0.00033972,2]
[313107616,1706753450051,-500.0,0.00033972,2]
[313107617,1706753450061,-500.0,0.00033972,2]
[313107618,1706753450070,-500.0,0.00033972,2]
[313107619,1706753450080,-653.9,0.00033972,2]
[313107620,1706753450089,-500.0,0.00033972,2]
[313107621,1706753450098,-500.0,0.00033972,2]
[313107622,1706753450107,-600.76,0.00033972,2]
[313107623,1706753450118,-1190.11,0.00033972,2]
[313107624,1706753450128,-521.78,0.00033972,2]
[313107625,1706753450137,-2893.73,0.00033972,2]
[313107626,1706753450146,-604.33,0.00033972,2]
[313107627,1706753450156,-500.0,0.00033972,2]
[313107628,1706753450165,-1202.11,0.00033972,2]
[313107629,1706753450175,-500.0,0.00033972,2]
[313107630,1706753450184,-500.0,0.00033972,2]
[313107631,1706753450193,-500.0,0.00033972,2]
[313107632,1706753450202,-700.42,0.00033972,2]
[313107633,1706753450212,-588.35,0.00033972,2]
[313107634,1706753450221,-500.0,0.00033972,2]
[313107635,1706753450230,-500.0,0.00033972,2]
[313107636,1706753450239,-500.0,0.00033972,2]
[313107637,1706753450248,-1342.61,0.00033972,2]
[313107638,1706753450257,-546.73702577,0.00033972,2]
[313107639,1706753450267,-1000.0,0.00033972,7]
[313107640,1706753450276,-500.0,0.00033972,2]
[313107641,1706753450286,-512.04,0.00033972,2]
[313107642,1706753450295,-1000.0,0.00033972,7]
[313107643,1706753450305,-2435.43,0.00033972,2]
[313107644,1706753450314,-663.09,0.00033972,2]
[313107645,1706753450324,-524.89,0.00033972,2]
[313107646,1706753450333,-1175.05,0.00033972,2]
[313107647,1706753450342,-1116.38,0.00033972,2]
[313107648,1706753450355,-608.17,0.00033972,2]
[313107649,1706753450365,-500.0,0.00033972,2]
[313107650,1706753450374,-500.0,0.00033972,2]
[313107651,1706753450384,-1738.12,0.00033972,2]
[313107652,1706753450394,-705.29,0.00033972,2]
[313107653,1706753450403,-500.0,0.00033972,2]
[313107654,1706753450413,-500.0,0.00033972,2]
[313107655,1706753450424,-667.37,0.00033972,2]
[313107656,1706753450434,-729.75,0.00033972,2]
[313107657,1706753450443,-602.39,0.00033972,2]
[313107658,1706753450453,-500.0,0.00033972,2]
[313107659,1706753450463,-858.58,0.00033972,2]
[313107660,1706753450473,-1497.78,0.00033972,2]
[313107661,1706753450482,-500.0,0.00033972,2]
[313107662,1706753450492,-500.0,0.00033972,2]
[313107663,1706753450502,-543.58,0.00033972,2]
[313107664,1706753450512,-500.0,0.00033972,2]
[313107665,1706753450522,-500.0,0.00033972,2]
[313107666,1706753450531,-708.31,0.00033972,2]
[313107667,1706753450541,-1482.14,0.00033972,2]
[313107668,1706753450550,-716.23,0.00033972,2]
[313107669,1706753450560,-1514.5,0.00033972,2]
[313107670,1706753450569,-500.0,0.00033972,2]
[313107671,1706753450579,-500.0,0.00033972,2]
[313107672,1706753450588,-500.0,0.00033972,2]
[313107673,1706753450597,-500.0,0.00033972,2]
[313107674,1706753450607,-500.0,0.00033972,2]
[313107675,1706753450616,-2146.38,0.00033972,5]
[313107676,1706753450627,-500.0,0.00033972,2]
[313107677,1706753450636,-500.0,0.00033972,2]
[313107678,1706753450645,-801.65,0.00033972,2]
[313107679,1706753450656,-500.0,0.00033972,2]
[313107680,1706753450666,-500.0,0.00033972,2]
[313107681,1706753450676,-888.22,0.00033972,2]
[313107682,1706753450685,-500.0,0.00033972,2]
[313107683,1706753450695,-500.0,0.00033972,2]
[313107684,1706753450704,-853.12,0.00033972,2]
[313107685,1706753450714,-500.0,0.00033972,2]
[313107686,1706753450724,-513.0710692,0.00033972,2]
[313107687,1706753450733,-500.0,0.00033972,2]
[313107688,1706753450743,-874.84,0.00033972,5]
[313107689,1706753450752,-562.9,0.00033972,2]
[313107690,1706753450761,-832.31,0.00033972,2]
[313107691,1706753450771,-500.0,0.00033972,2]
[313107692,1706753450781,-500.0,0.00033972,2]
[313107693,1706753450791,-532.2265358,0.00034,35]
[313107694,1706753450800,-636.49088979,0.00034,4]
[313107695,1706753450809,-197.0201,0.00034048,4]
[313107696,1706753450819,-159.97,0.00034051,2]
[313107697,1706753450828,-1518.97662588,0.00034081,2]
[313107698,1706753450838,-234.0201,0.00034148,4]
[313107699,1706753450847,-3000.0,0.0003417,2]
[313107700,1706753450856,-167.0,0.00034223,2]
[313107701,1706753450866,-234.0201,0.00034248,4]
[313107702,1706753450877,-437.89465387,0.00034276,6]
[313107703,1706753450887,-2231.46229872,0.00034329,6]
[313107704,1706753450896,-234.0201,0.00034348,4]
[313107705,1706753450905,-1888.14,0.00034384,2]
[313107706,1706753450914,-403.23,0.00034384,2]
[313107707,1706753450924,-403.23,0.00034384,2]
[313107708,1706753450933,-412.71,0.00034384,2]
[313107709,1706753450943,-213.89161875,0.00034419,2]
[313107710,1706753450952,-151.49840451,0.00034421,2]
[313107711,1706753450962,-193.28456754,0.00034421,2]
[313107712,1706753450971,-500.0,0.0003443,10]
[313107713,1706753450980,-234.0201,0.00034448,4]
[313107714,1706753450989,-1518.97662589,0.00034456,2]
[313107715,1706753450998,-1041.05,0.000345,14]
[313107716,1706753451008,-156.12,0.00034506,7]
[313107717,1706753451018,-250.67192842,0.00034516,4]
[313107718,1706753451027,-632.45,0.00034516,2]
[313107719,1706753451036,-595.33433567,0.00034517,4]
[313107720,1706753451045,-2798.18716244,0.00034517,4]
[313107721,1706753451054,-229.85924146,0.00034517,4]
[313107722,1706753451064,-155.83338709,0.00034517,4]
[313107723,1706753451073,-240.93431705,0.00034517,4]
[313107724,1706753451082,-3050.37536444,0.00034517,4]
[313107725,1706753451091,-155.59819828,0.00034517,4]
[313107726,1706753451101,-155.52675014,0.00034517,4]
[313107727,1706753451110,-155.4231818,0.00034517,4]
[313107728,1706753451119,-156.32567659,0.00034517,4]
[313107729,1706753451128,-507.76579249,0.00034517,4]
[313107730,1706753451138,-221.96418074,0.00034517,4]
[313107731,1706753451147,-155.31861112,0.00034517,4]
[313107732,1706753451157,-234.88008364,0.00034517,4]
[313107733,1706753451167,-546.67090037,0.00034517,4]
[313107734,1706753451177,-155.66586412,0.00034517,4]
[313107735,1706753451186,-155.46427974,0.00034517,4]
[313107736,1706753451196,-1068.30143521,0.00034517,4]
[313107737,1706753451205,-155.35667322,0.00034517,2]
[313107738,1706753451214,-1056.68708111,0.00034517,4]
[313107739,1706753451224,-4741.47330348,0.00034517,2]
[313107740,1706753451233,-4288.12017062,0.00034517,4]
[313107741,1706753451242,-205.8471499,0.00034517,4]
[313107742,1706753451252,-504.86623782,0.00034517,4]
[313107743,1706753451261,-500.0,0.00034519,2]
[313107744,1706753451270,-1000.0,0.0003452,7]
[313107745,1706753451279,-500.0,0.0003452,2]
[313107746,1706753451288,-602.08,0.0003452,2]
[313107747,1706753451297,-419.61112007,0.0003452,2]
[313107748,1706753451307,-500.0,0.0003452,10]
[313107749,1706753451316,-582.78,0.0003452,2]
[313107750,1706753451325,-500.0,0.0003452,2]
[313107751,1706753451335,-500.0,0.0003452,2]
[313107752,1706753451344,-763.16,0.0003452,2]
[313107753,1706753451354,-1461.41,0.0003452,2]
[313107754,1706753451363,-177.25026171,0.0003452,2]
[313107755,1706753451372,-638.86,0.0003452,2]
[313107756,1706753451383,-500.0,0.0003452,2]
[313107757,1706753451393,-626.08,0.0003452,2]
[313107758,1706753451402,-500.0,0.0003452,2]
[313107759,1706753451413,-152.3422105,0.0003452,2]
[313107760,1706753451426,-500.0,0.0003452,2]
[313107761,1706753451436,-500.0,0.0003452,2]
[313107762,1706753451445,-1198.3,0.0003452,2]
[313107763,1706753451456,-514.54441218,0.0003452,2]
[313107764,1706753451465,-500.0,0.0003452,2]
[313107765,1706753451475,-500.0,0.0003452,2]
[313107766,1706753451485,-747.95,0.0003452,2]
[313107767,1706753451495,-974.69,0.0003452,2]
[313107768,1706753451504,-591.16591609,0.0003452,2]
[313107769,1706753451513,-500.0,0.0003452,2]
[313107770,1706753451523,-500.0,0.0003452,2]
[313107771,1706753451533,-500.0,0.0003452,2]
[313107772,1706753451544,-535.33672736,0.0003452,2]
[313107773,1706753451554,-500.0,0.0003452,2]
[313107774,1706753451562,-1419.12,0.0003452,7]
[313107775,1706753451571,-500.0,0.0003452,2]
[313107776,1706753451581,-800.63,0.0003452,2]
[313107777,1706753451590,-500.0,0.0003452,2]
[313107778,1706753451599,-1059.69,0.0003452,2]
[313107779,1706753451608,-213.01642272,0.0003452,2]
[313107780,1706753451618,-500.0,0.0003452,2]
[313107781,1706753451628,-500.0,0.0003452,2]
[313107782,1706753451638,-500.0,0.0003452,2]
[313107783,1706753451647,-500.0,0.0003452,2]
[313107784,1706753451664,-500.0,0.0003452,2]
[313107785,1706753451705,-500.0,0.0003452,2]
[313107786,1706753451714,-500.0,0.0003452,2]
[313107787,1706753451723,-500.0,0.0003452,2]
[313107788,1706753451733,-510.68,0.0003452,2]
[313107789,1706753451743,-500.0,0.0003452,2]
[313107790,1706753451752,-500.0,0.0003452,2]
[313107791,1706753451762,-1339.36,0.0003452,2]
[313107792,1706753451771,-500.0,0.0003452,2]
[313107793,1706753451781,-500.0,0.0003452,2]
[313107794,1706753451790,-500.0,0.0003452,2]
[313107795,1706753451846,-500.0,0.0003452,2]
[313107796,1706753451855,-504.24,0.0003452,2]
[313107797,1706753451865,-500.0,0.0003452,2]
[313107798,1706753451874,-500.0,0.0003452,2]
[313107799,1706753451885,-500.0,0.0003452,2]
[313107800,1706753451895,-943.66,0.0003452,2]
[313107801,1706753451904,-500.0,0.0003452,2]
[313107802,1706753451913,-500.0,0.0003452,2]
[313107803,1706753451923,-500.0,0.0003452,2]
[313107804,1706753451932,-500.0,0.0003452,2]
[313107805,1706753451941,-500.96,0.0003452,2]
[313107806,1706753451951,-588.0,0.0003452,2]
[313107807,1706753451960,-500.0,0.0003452,2]
[313107808,1706753451970,-1000.0,0.0003452,2]
[313107809,1706753451979,-500.0,0.0003452,2]
[313107810,1706753451988,-500.0,0.0003452,2]
[313107811,1706753451998,-500.0,0.0003452,2]
[313107812,1706753452007,-500.0,0.0003452,2]
[313107813,1706753452016,-500.0,0.0003452,2]
[313107814,1706753452025,-182.77224073,0.0003452,2]
[313107815,1706753452034,-500.0,0.0003452,2]
[313107816,1706753452043,-500.0,0.0003452,2]
[313107817,1706753452052,-500.0,0.0003452,2]
[313107818,1706753452061,-500.0,0.0003452,2]
[313107819,1706753452070,-500.0,0.0003452,2]
[313107820,1706753452079,-500.0,0.0003452,2]
[313107821,1706753452089,-500.0,0.0003452,2]
[313107822,1706753452098,-500.0,0.0003452,2]
[313107823,1706753452107,-500.0,0.0003452,2]
[313107824,1706753452115,-500.0,0.0003452,2]
[313107825,1706753452124,-500.0,0.0003452,2]
[313107826,1706753452135,-500.0,0.0003452,2]
[313107827,1706753452144,-256.34351943,0.0003452,2]
[313107828,1706753452153,-1314.44,0.0003452,2]
[313107829,1706753452162,-500.0,0.0003452,2]
[313107830,1706753452170,-628.37,0.0003452,2]
[313107831,1706753452179,-1483.58,0.0003452,2]
[313107832,1706753452188,-833.05,0.0003452,2]
[313107833,1706753452197,-621.52,0.0003452,2]
[313107834,1706753452206,-760.71,0.0003452,2]
[313107835,1706753452215,-1506.53,0.0003452,2]
[313107836,1706753452223,-500.0,0.0003452,2]
[313107837,1706753452233,-580.6743261,0.0003452,2]
[313107838,1706753452242,-2613.19,0.0003452,2]
[313107839,1706753452251,-1000.0,0.0003452,21]
[313107840,1706753452260,-500.0,0.0003452,2]
[313107841,1706753452268,-841.1,0.0003452,2]
[313107842,1706753452277,-500.0,0.0003452,2]
[313107843,1706753452286,-1092.7,0.0003452,2]
[313107844,1706753452295,-654.8,0.0003452,2]
[313107845,1706753452304,-500.0,0.0003452,2]
[313107846,1706753452313,-500.0,0.0003452,2]
[313107847,1706753452322,-601.97,0.0003452,2]
[313107848,1706753452331,-209.74194366,0.0003452,2]
[313107849,1706753452340,-500.0,0.0003452,2]
[313107850,1706753452348,-500.0,0.0003452,2]
[313107851,1706753452357,-546.24,0.0003452,2]
[313107852,1706753452366,-1642.79,0.0003452,2]
[313107853,1706753452375,-500.0,0.0003452,2]
[313107854,1706753452385,-809.92,0.0003452,2]
[313107855,1706753452394,-719.16,0.0003452,2]
[313107856,1706753452403,-500.0,0.0003452,2]
[313107857,1706753452412,-500.0,0.0003452,2]
[313107858,1706753452425,-500.0,0.0003452,2]
[313107859,1706753452434,-500.0,0.0003452,2]
[313107860,1706753452443,-2879.3,0.0003452,2]
[313107861,1706753452452,-3356.9,0.0003452,2]
[313107862,1706753452460,-500.0,0.0003452,2]
[313107863,1706753452469,-1283.42,0.0003452,2]
[313107864,1706753452478,-500.0,0.0003452,2]
[313107865,1706753452487,-500.0,0.0003452,2]
[313107866,1706753452497,-18391.59,0.0003452,2]
[313107867,1706753452507,-1359.64,0.0003452,2]
[313107868,1706753452516,-723.9,0.0003452,2]
[313107869,1706753452525,-500.0,0.0003452,2]
[313107870,1706753452534,-631.81,0.0003452,2]
[313107871,1706753452543,-500.0,0.0003452,2]
[313107872,1706753452552,-500.0,0.0003452,2]
[313107873,1706753452561,-500.0,0.0003452,2]
[313107874,1706753452570,-881.3,0.0003452,2]
[313107875,1706753452579,-500.0,0.0003452,2]
[313107876,1706753452588,-1212.78,0.0003452,2]
[313107877,1706753452597,-812.76,0.0003452,2]
[313107878,1706753452606,-500.0,0.0003452,2]
[313107879,1706753452615,-500.0,0.0003452,2]
[313107880,1706753452625,-857.23,0.0003452,2]
[313107881,1706753452635,-603.13729758,0.0003452,2]
[313107882,1706753452644,-500.0,0.0003452,2]
[313107883,1706753452654,-705.5,0.0003452,2]
[313107884,1706753452663,-1366.96,0.0003452,2]
[313107885,1706753452672,-565.2,0.0003452,2]
[313107886,1706753452680,-573.41,0.0003452,2]
[313107887,1706753452690,-500.0,0.0003452,2]
[313107888,1706753452699,-500.0,0.0003452,2]
[313107889,1706753452707,-588.44,0.0003452,2]
[313107890,1706753452717,-2427.53,0.0003452,2]
[313107891,1706753452726,-500.0,0.0003452,2]
[313107892,1706753452735,-500.0,0.0003452,2]
[313107893,1706753452744,-1019.17,0.0003452,2]
[313107894,1706753452753,-500.0,0.0003452,2]
[313107895,1706753452762,-588.18,0.0003452,2]
[313107896,1706753452771,-578.65,0.0003452,2]
[313107897,1706753452780,-500.0,0.0003452,2]
[313107898,1706753452789,-2981.67,0.0003452,2]
[313107899,1706753452798,-825.08,0.0003452,2]
[313107900,1706753452808,-546.27220847,0.0003452,2]
[313107901,1706753452816,-500.0,0.0003452,2]
[313107902,1706753452826,-1063.77,0.0003452,2]
[313107903,1706753452835,-4863.03,0.0003452,2]
[313107904,1706753452844,-500.0,0.0003452,2]
[313107905,1706753452854,-1608.22,0.0003452,2]
[313107906,1706753452863,-839.58,0.0003452,2]
[313107907,1706753452872,-500.0,0.0003452,2]
[313107908,1706753452881,-500.0,0.0003452,2]
[313107909,1706753452890,-500.0,0.0003452,2]
[313107910,1706753452899,-500.0,0.0003452,2]
[313107911,1706753452909,-500.0,0.0003452,2]
[313107912,1706753452918,-500.0,0.0003452,2]
[313107913,1706753452927,-500.0,0.0003452,2]
[313107914,1706753452936,-653.9,0.0003452,2]
[313107915,1706753452946,-500.0,0.0003452,2]
[313107916,1706753452955,-500.0,0.0003452,2]
[313107917,1706753452964,-600.76,0.0003452,2]
[313107918,1706753452973,-1190.11,0.0003452,2]
[313107919,1706753452982,-521.78,0.0003452,2]
[313107920,1706753452991,-2893.73,0.0003452,2]
[313107921,1706753453000,-604.33,0.0003452,2]
[313107922,1706753453009,-500.0,0.0003452,2]
[313107923,1706753453018,-1202.11,0.0003452,2]
[313107924,1706753453028,-500.0,0.0003452,2]
[313107925,1706753453037,-500.0,0.0003452,2]
[313107926,1706753453046,-500.0,0.0003452,2]
[313107927,1706753453054,-700.42,0.0003452,2]
[313107928,1706753453064,-588.35,0.0003452,2]
[313107929,1706753453073,-500.0,0.0003452,2]
[313107930,1706753453082,-500.0,0.0003452,2]
[313107931,1706753453100,-500.0,0.0003452,2]
[313107932,1706753453120,-1342.61,0.0003452,2]
[313107933,1706753453131,-1000.0,0.0003452,7]
[313107934,1706753453141,-519.60635601,0.0003452,2]
[313107935,1706753453150,-512.04,0.0003452,2]
[313107936,1706753453160,-1000.0,0.0003452,7]
[313107937,1706753453170,-2435.43,0.0003452,2]
[313107938,1706753453179,-663.09,0.0003452,2]
[313107939,1706753453189,-524.89,0.0003452,2]
[313107940,1706753453198,-1175.05,0.0003452,2]
[313107941,1706753453207,-1116.38,0.0003452,2]
[313107942,1706753453216,-608.17,0.0003452,2]
[313107943,1706753453225,-500.0,0.0003452,2]
[313107944,1706753453234,-500.0,0.0003452,2]
[313107945,1706753453243,-1738.12,0.0003452,2]
[313107946,1706753453253,-705.29,0.0003452,2]
[313107947,1706753453262,-500.0,0.0003452,2]
[313107948,1706753453272,-500.0,0.0003452,2]
[313107949,1706753453281,-667.37,0.0003452,2]
[313107950,1706753453291,-729.75,0.0003452,2]
[313107951,1706753453300,-602.39,0.0003452,2]
[313107952,1706753453309,-500.0,0.0003452,2]
[313107953,1706753453319,-858.58,0.0003452,2]
[313107954,1706753453328,-1497.78,0.0003452,2]
[313107955,1706753453337,-500.0,0.0003452,2]
[313107956,1706753453347,-500.0,0.0003452,2]
[313107957,1706753453356,-543.58,0.0003452,2]
[313107958,1706753453365,-500.0,0.0003452,2]
[313107959,1706753453374,-500.0,0.0003452,2]
[313107960,1706753453384,-708.31,0.0003452,2]
[313107961,1706753453394,-1482.14,0.0003452,2]
[313107962,1706753453403,-716.23,0.0003452,2]
[313107963,1706753453412,-1514.5,0.0003452,2]
[313107964,1706753453424,-500.0,0.0003452,2]
[313107965,1706753453433,-500.0,0.0003452,2]
[313107966,1706753453443,-500.0,0.0003452,2]
[313107967,1706753453452,-500.0,0.0003452,2]
[313107968,1706753453461,-500.0,0.0003452,2]
[313107969,1706753453470,-500.0,0.0003452,2]
[313107970,1706753453480,-2146.38,0.0003452,5]
[313107971,1706753453490,-500.0,0.0003452,2]
[313107972,1706753453499,-801.65,0.0003452,2]
[313107973,1706753453508,-500.0,0.0003452,2]
[313107974,1706753453517,-888.22,0.0003452,2]
[313107975,1706753453526,-500.0,0.0003452,2]
[313107976,1706753453535,-500.0,0.0003452,2]
[313107977,1706753453545,-500.0,0.0003452,2]
[313107978,1706753453554,-853.12,0.0003452,2]
[313107979,1706753453566,-500.0,0.0003452,2]
[313107980,1706753453575,-500.0,0.0003452,2]
[313107981,1706753453584,-874.84,0.0003452,5]
[313107982,1706753453594,-562.9,0.0003452,2]
[313107983,1706753453604,-832.31,0.0003452,2]
[313107984,1706753453613,-500.0,0.0003452,2]
[313107985,1706753453622,-500.0,0.0003452,2]
[313107986,1706753453632,-150.0,0.00034548,10]
[313107987,1706753453641,-234.0201,0.00034548,4]
[313107988,1706753453650,-573.48,0.00034599,2]
[313107989,1706753453659,-234.0201,0.00034648,4]
[313107990,1706753453669,-208.0,0.00034712,15]
[313107991,1706753453678,-200.0,0.00034715,5]
[313107992,1706753453688,-204.179106,0.00034715,5]
[313107993,1706753453697,-151.0201,0.00034748,4]
[313107994,1706753453707,-179.67914627,0.000348,2]
[313107995,1706753453716,-159.97,0.00034834,2]
[313107996,1706753453726,-234.0201,0.00034848,4]
[313107997,1706753453735,-500.0,0.0003488,2]
[313107998,1706753453744,-852.0,0.00034895,5]
[313107999,1706753453754,-632.45,0.00034899,2]
[313108000,1706753453763,-4128.45897755,0.000349,2]
[313108001,1706753453773,-4128.45897746,0.000349,2]
[313108002,1706753453782,-4128.45897746,0.000349,2]
[313108003,1706753453792,-4128.45897746,0.000349,2]
[313108004,1706753453802,-4128.45897746,0.000349,2]
[313108005,1706753453811,-2022.90092781,0.000349,2]
[313108006,1706753455048,-150.0,0.00023,2]
[313108007,1706753455057,-282.41510476,0.00023899,2]
[313108008,1706753455068,-272.43259891,0.00023899,2]
[313108009,1706753455077,-500.0,0.00032876,2]
[313108010,1706753455087,-500.0,0.00033424,2]
[313108011,1706753455096,-500.0,0.00033972,2]
[313108012,1706753455105,-500.0,0.0003452,2]
[313108013,1706753455114,-2105.55804965,0.000349,2]
[313108014,1706753455123,-4128.45897746,0.000349,2]
[313108015,1706753455132,-4128.45897746,0.000349,2]
[313108016,1706753455141,-234.0201,0.00034948,4]
[313108017,1706753455151,-19196.88510434,0.00034948,7]
[313108018,1706753455160,-800.0,0.00034958,2]
[313108019,1706753455169,-152.41868763,0.00034964,2]
[313108020,1706753455179,-1184.06361434,0.00034969,2]
[313108021,1706753455190,-2025.16531575,0.00034969,2]
[313108022,1706753455208,-79.08374392,0.00034969,2]
[313108023,1706753455217,-185.39704494,0.00034969,2]
[313108024,1706753455233,-323.66281797,0.00032875,4]
[313108025,1706753455245,-931.13278959,0.00032875,4]
[313108026,1706753455256,-844.56366426,0.00032875,4]
[313108027,1706753455267,-2001.14964765,0.00032875,4]
[313108028,1706753455278,-3032.76627441,0.00032875,4]
[313108029,1706753455289,-751.89762579,0.00032875,4]
[313108030,1706753455300,-405.80371586,0.00032875,4]
[313108031,1706753455311,-2067.55218886,0.00032875,4]